{"text_format":"3","workbook":"xlsx","n_sheets":1,"sheets":["Receiving Report"],"not_rendered":{"defined_names":28,"comments":1},"read":"whole","date_system":"1900"}

{"sheet":"Receiving Report","index":0,"n_rows":43,"n_cols":12,"rows_kept":43,"merged":[[46,1,46,11]]}
[]
[]
[null,"Receiving Report"]
[]
[]
[]
[{"$nulls":6},"DATE",null,null,"SHIFT"]
[{"$nulls":5},"CHECK CARRIER"]
[{"$nulls":6}," UNITED PARCEL SVC",null,null," SHIPPER'S TRUCK"]
[{"$nulls":6}," PARCEL POST (USPS)",null,null," AIR EXPRESS"]
[{"$nulls":6}," TRUCK",null,null," EXPRESS MAIL"]
[{"$nulls":6}," RAIL",null,null," OTHER"]
[null,"SHIPPED FROM",{"$nulls":3},"CHECK PAYMENT"]
[{"$nulls":6}," PREPAID",null,null," COLLECT"]
[]
[null,"OUR ORDER NUMBER",null,"DATE SHIPPED",null,"SHIPPED TO ATTENTION OF",{"$nulls":3},"LOCATION",null,"PHONE"]
[]
[]
[{"$nulls":6},"NUMBER","WEIGHT","WEIGHT",null,"CARTON","REC'D BY"]
[null,"QTY","DESCRIPTION",{"$nulls":3},"OF CARTONS","EACH","TOTAL",null,"CONDITION","INTLS"]
[null,null,"Product",{"$nulls":3},65,87,null,{"$f":"IF(OR(G21>0,H21>0),G21*H21,\"\")","v":5655}]
[null,null,"Product",{"$nulls":3},12,32,null,384]
[{"$nulls":9},""]
[{"$nulls":9},""]
[{"$nulls":9},""]
[{"$nulls":9},""]
[{"$nulls":9},""]
[{"$nulls":9},""]
[{"$nulls":9},""]
[{"$nulls":9},""]
[{"$nulls":9},""]
[{"$nulls":9},""]
[{"$nulls":9},""]
[{"$nulls":9},""]
[{"$nulls":9},""]
[{"$nulls":9},""]
[{"$nulls":9},""]
[]
[null,"SHIPMENT:",null,"TOTAL NUMBER",null,null,"TOTAL",null,"NUMBER & CONDITION OF ITEMS:"]
[null,"COMPLETE or PARTIAL",null,"OF CARTONS",null,null,"WEIGHT",null,null,"OKAY",null,"DAMAGED"]
[{"$nulls":3},{"$f":"IF(SUM(G21:G37),SUM(G21:G37),\"\")","v":77},null,null,{"$f":"IF(SUM(J21:J37),SUM(J21:J37),\"\")","v":6039},{"$nulls":4},{"$f":"IF(J41,D41-J41,\"\")","v":""}]
[]
[null,"RECEIVED BY",{"$nulls":4},"DATE","CHECKED BY",{"$nulls":3},"DATE"]